bitfinex/quotes_ETHUSD_20251021
["timestamp","ask_amount","ask_price","bid_price","bid_amount"]
[1761036344705,0.54551616,3862.1,3861.8,2.58946605]
[1761036344932,0.54551616,3862.0,3861.7,2.58952656]
[1761036345137,0.54551616,3862.1,3861.9,2.58935032]
[1761036345335,0.54551616,3862.0,3861.9,2.58935032]
[1761036347112,0.54551616,3862.1,3862.0,2.58933195]
[1761036350408,0.54551616,3862.1,3862.0,2.71813195]
[1761036354160,0.001,3862.2,3862.1,2.5892649]
[1761036354312,0.001,3862.2,3862.1,6.3612649]
[1761036355057,0.001,3862.2,3862.1,6.9969449]
[1761036358043,0.001,3862.2,3862.1,6.5564449]
[1761036358243,0.001,3862.2,3862.1,3.2124449]
[1761036358429,0.001,3862.2,3862.1,7.23255099]
[1761036358831,0.001,3862.2,3862.1,7.54425099]
[1761036359026,0.001,3862.2,3862.1,11.07701348]
[1761036359233,0.001,3862.2,3862.1,10.76531348]
[1761036359833,0.001,3862.2,3862.1,11.07701348]
[1761036361036,0.001,3862.2,3862.1,10.76531348]
[1761036361231,0.001,3862.2,3862.1,10.08920739]
[1761036361448,0.001,3862.2,3862.1,9.46602739]
[1761036365171,0.001,3862.2,3862.1,9.89402739]
[1761036365335,0.001,3862.2,3862.1,9.58232739]
[1761036366758,0.001,3862.2,3862.1,10.08920739]
[1761036366965,0.001,3862.2,3862.1,11.66876256]
[1761036368153,0.001,3862.2,3862.1,11.48586256]
[1761036368360,0.001,3862.2,3862.1,11.79756256]
[1761036374797,0.001,3862.2,3862.1,11.48586256]
[1761036375028,0.001,3862.2,3862.1,11.79756256]
[1761036376122,0.001,3862.6,3862.5,3.09587676]
[1761036376331,0.001,3862.6,3862.5,6.43787676]
[1761036377613,0.001,3862.6,3862.5,6.74957676]
[1761036377984,0.001,3862.6,3862.5,6.43787676]
[1761036379702,0.001,3862.6,3862.5,6.74957676]
[1761036379894,0.001,3862.6,3862.5,7.82731106]
[1761036380697,0.001,3862.6,3862.5,7.51561106]
[1761036383226,0.001,3862.6,3862.5,9.24361106]
[1761036383621,0.001,3862.6,3862.5,5.93099676]
[1761036383817,0.4726,3862.6,3862.5,6.43787676]
[1761036384330,0.001,3862.6,3862.5,6.43787676]
[1761036386101,0.001,3862.6,3862.5,6.56667676]
[1761036386932,6.27376581,3862.6,3862.5,0.1288]
[1761036387147,6.82182306,3862.6,3862.5,0.1288]
[1761036387297,3.301136,3862.5,3860.3,0.002]
[1761036387501,5.80116581,3861.1,3860.3,0.002]
[1761036387725,0.237,3860.7,3860.3,0.002]
[1761036388116,0.7086,3860.7,3860.6,0.1308]
[1761036388314,0.237,3860.7,3860.6,2.72107094]
[1761036388523,0.7086,3860.7,3860.6,2.72107094]
[1761036389429,0.237,3860.7,3860.6,2.72107094]
[1761036390047,0.7086,3860.7,3860.6,2.72107094]
[1761036390253,0.7086,3860.7,3860.6,0.1308]
[1761036391243,0.2231,3861.0,3860.6,0.76711161]
[1761036391443,0.6789,3861.0,3860.6,0.1308]
[1761036391749,0.4558,3860.9,3860.8,2.59013675]
[1761036392177,0.4558,3860.9,3860.8,2.71893675]
[1761036393664,0.4558,3860.9,3860.8,0.1288]
[1761036395087,0.4558,3860.9,3860.8,2.71893675]
[1761036395891,0.4558,3860.9,3860.8,0.1288]
[1761036396063,0.4558,3860.9,3860.6,0.002]
[1761036396259,5.80116581,3860.7,3860.6,0.002]
[1761036396487,8.39136965,3860.7,3860.6,0.002]
[1761036396689,8.84716965,3860.7,3860.6,0.002]
[1761036396984,10.57516965,3860.7,3860.6,0.002]
[1761036397190,25.63828165,3860.7,3860.6,0.002]
[1761036397368,19.50761865,3860.7,3860.6,0.002]
[1761036397693,18.20923265,3860.7,3860.6,0.002]
[1761036398266,16.37633546,3860.7,3860.6,0.002]
[1761036398472,16.11492765,3860.7,3860.6,0.002]
[1761036398670,20.09858283,3860.7,3860.6,0.002]
[1761036398858,20.7297746,3860.7,3860.6,0.002]
[1761036399064,23.74273304,3860.7,3860.6,0.002]
[1761036399368,19.77279823,3860.7,3860.6,0.002]
[1761036399567,13.22257302,3860.7,3860.6,0.002]
[1761036399782,7.98496581,3860.7,3860.6,0.002]
[1761036400155,11.32496581,3860.7,3860.6,0.002]
[1761036400385,13.91516965,3860.7,3860.6,0.002]
[1761036400566,11.32496581,3860.7,3860.6,0.002]
[1761036400766,9.59696581,3860.7,3860.6,0.002]
[1761036400957,6.25696581,3860.7,3860.6,0.002]
[1761036401162,9.59696581,3860.7,3860.6,0.002]
[1761036401563,11.32496581,3860.7,3860.6,0.002]
[1761036401788,7.98496581,3860.7,3860.6,0.002]
[1761036402398,10.57516965,3860.7,3860.6,0.002]
[1761036402703,4.77400384,3860.7,3860.6,0.002]
[1761036402866,4.79979446,3860.7,3860.6,0.002]
[1761036404566,2.20959062,3860.7,3860.6,0.002]
[1761036404763,5.5238,3860.7,3860.6,0.002]
[1761036405200,2.1838,3860.7,3860.6,0.002]
[1761036405399,5.5238,3860.7,3860.6,0.002]
[1761036405600,1.728,3860.7,3860.6,0.002]
[1761036405907,2.1838,3860.7,3860.6,0.002]
[1761036406068,2.20959062,3860.7,3860.6,0.002]
[1761036406487,4.79979446,3860.7,3860.6,0.002]
[1761036407689,2.20959062,3860.7,3860.6,0.002]
[1761036408697,1.75379062,3860.7,3860.6,0.002]
[1761036409404,4.79979446,3860.7,3860.6,0.002]
[1761036409808,2.20959062,3860.7,3860.6,0.002]
[1761036409984,4.79979446,3860.7,3860.6,0.002]
[1761036410697,7.85603346,3860.7,3860.6,0.002]
[1761036410999,7.83024284,3860.7,3860.6,0.002]
[1761036411383,8.3742471,3860.7,3860.6,0.002]
[1761036411789,7.5913471,3860.7,3860.6,0.002]
[1761036412178,7.5243471,3860.7,3860.6,0.002]
[1761036414615,7.4645521,3860.7,3860.6,0.002]
[1761036414818,7.6025521,3860.7,3860.6,0.002]
[1761036415205,5.3180081,3860.7,3860.6,0.002]
[1761036415519,7.6787561,3860.7,3860.6,0.002]
[1761036416310,9.04529753,3860.7,3860.6,0.002]
[1761036416625,12.42270853,3860.7,3860.6,0.002]
[1761036417433,6.79442094,3860.6,3860.5,0.3]
[1761036417635,5.3180752,3860.6,3860.5,0.3]
[1761036417931,10.421029,3860.6,3860.5,0.3]
[1761036418426,9.0531732,3860.6,3860.5,0.3]
[1761036418629,4.31840513,3860.4,3860.3,0.002]
[1761036418794,8.20140939,3860.4,3860.3,0.002]
[1761036418989,8.65720939,3860.4,3860.3,0.002]
[1761036419227,8.78600939,3860.4,3860.3,0.002]
[1761036420701,8.33020939,3860.4,3860.3,0.002]
[1761036420932,0.54400426,3860.4,3860.3,0.002]
[1761036421134,0.54400426,3860.4,3860.3,3.03297224]
[1761036421135,0.23800186,3860.4,3860.3,3.03297224]
[1761036421303,3.339,3861.5,3860.3,0.4425]
[1761036421630,3.339,3861.5,3861.1,0.1288]
[1761036421631,2.58979265,3861.4,3861.1,0.1288]
[1761036421840,3.339,3861.5,3861.1,0.1288]
[1761036422009,0.1288,3861.9,3861.3,0.1288]
[1761036422215,2.58948423,3861.8,3861.3,0.1288]
[1761036422440,3.4678,3861.9,3861.3,0.1288]
[1761036422598,2.58954121,3861.7,3861.3,0.1288]
[1761036422800,3.4678,3861.9,3861.3,0.1288]
[1761036422801,16.76666965,3861.6,3861.3,0.1288]
[1761036423008,2.58984736,3861.3,3861.1,0.1288]
[1761036423213,0.02579062,3861.4,3861.1,0.1288]
[1761036423396,0.02579062,3861.4,3860.6,0.1288]
[1761036423397,0.02579062,3861.2,3860.6,0.1288]
[1761036423603,2.59001673,3861.0,3860.6,0.1288]
[1761036423936,0.02579062,3860.9,3860.6,0.1288]
[1761036424134,2.59001662,3861.0,3860.6,0.1288]
[1761036424535,2.61586215,3860.9,3860.6,0.1288]
[1761036424699,1.75379062,3860.9,3860.6,0.1288]
[1761036424898,2.61586815,3860.9,3860.6,0.1288]
[1761036425136,0.02579062,3860.9,3860.6,0.1288]
[1761036425438,2.61591476,3860.9,3860.6,0.1288]
[1761036425623,0.02579062,3860.9,3860.6,0.1288]
[1761036425932,1.728,3861.1,3860.6,2.7190619]
[1761036426235,3.338,3861.3,3860.9,0.1288]
[1761036427055,3.338,3861.3,3860.3,0.002]
[1761036427056,4.005714,3862.3,3861.2,0.1223]
[1761036427200,1.82203632,3862.6,3861.7,2.58951603]
[1761036427201,0.02579062,3862.5,3861.7,2.58951603]
[1761036427401,1.728,3862.3,3861.3,2.58975403]
[1761036427601,2.5892757,3862.1,3861.3,2.58975403]
[1761036427815,17.18097903,3862.2,3861.2,0.1223]
[1761036428036,17.18097903,3862.2,3861.6,2.58955534]
[1761036428340,17.18097903,3862.2,3861.7,2.58952012]
[1761036428524,17.18097903,3862.2,3861.2,0.434]
[1761036428525,0.001,3862.6,3862.4,2.58899829]
[1761036428704,0.001,3862.6,3861.8,0.02589466]
[1761036428705,0.001,3862.6,3862.2,2.58917665]
[1761036428904,1.729,3862.6,3862.2,2.58917665]
[1761036429103,0.001,3862.6,3862.2,2.58917665]
[1761036429353,1.729,3862.6,3862.2,2.58917665]
[1761036429635,1.729,3862.6,3862.0,2.58932944]
[1761036430002,1.729,3862.6,3862.1,2.58925356]
[1761036430817,0.02679062,3862.5,3861.0,0.3117]
[1761036431121,1.728,3862.3,3861.6,2.58958485]
[1761036431345,2.58931884,3862.1,3861.3,2.58975318]
[1761036431655,2.58931884,3862.1,3861.4,2.58971869]
[1761036431819,0.02579062,3862.2,3861.3,2.58976756]
[1761036432024,2.58932044,3862.1,3861.4,2.58973224]
[1761036432351,2.5895529,3861.7,3860.9,2.59001903]
[1761036432554,2.58961758,3861.6,3860.9,2.59001903]
[1761036432944,2.58966797,3861.5,3860.8,2.59011656]
[1761036433264,2.5896721,3861.5,3860.7,2.59014365]
[1761036433464,0.02579062,3861.4,3860.3,0.3137]
[1761036433764,0.02579062,3861.4,3860.8,2.59009174]
[1761036434139,0.02579062,3861.4,3860.6,2.59026944]
[1761036434140,5.065,3861.7,3861.1,2.58988585]
[1761036434340,0.2357,3862.0,3861.4,2.58972017]
[1761036434646,1.728,3861.8,3861.2,2.58984792]
[1761036435081,1.75379062,3861.8,3861.3,2.58979926]
[1761036435356,0.4401,3861.7,3861.1,2.58993117]
[1761036435654,3.02965246,3861.7,3860.9,2.59000452]
[1761036435845,0.4401,3861.7,3861.1,2.5899063]
[1761036436047,1.75379062,3861.8,3860.6,3.09714643]
[1761036436251,1.75379062,3861.8,3860.8,0.3117]
[1761036436456,1.75379062,3861.8,3860.5,0.36527]
[1761036436632,1.75379062,3861.8,3861.2,2.5898585]
[1761036436828,4.34326756,3861.8,3861.1,2.58991291]
[1761036437041,1.728,3861.6,3861.0,2.5899846]
[1761036437256,0.02579062,3861.5,3861.2,0.1288]
[1761036437735,1.728,3861.8,3861.2,2.71862481]
[1761036437921,0.57242235,3861.7,3861.2,0.1288]
[1761036438122,0.02579062,3861.7,3861.2,0.1288]
[1761036438357,0.444,3861.7,3861.2,2.71866257]
[1761036438872,3.336,3861.8,3861.6,0.1288]
[1761036439039,0.5728,3862.3,3861.6,0.1288]
[1761036439040,0.1288,3862.3,3861.6,0.1288]
[1761036439233,3.36179062,3862.2,3861.6,0.1288]
[1761036439454,2.27469303,3862.1,3861.6,0.1288]
[1761036439634,2.27469303,3862.1,3861.7,2.5894739]
[1761036439635,1.728,3862.1,3861.7,2.5894739]
[1761036440039,1.728,3862.1,3861.6,2.71837725]
[1761036440624,1.728,3862.1,3861.7,2.58948135]
[1761036440827,1.728,3862.1,3861.8,2.58946088]
[1761036441038,1.728,3862.1,3861.7,2.58949144]
[1761036441238,1.75379062,3862.1,3861.6,2.7183767]
[1761036441449,0.6851818,3862.0,3861.6,0.1288]
[1761036441659,0.6851818,3862.0,3861.3,2.58979219]
[1761036441660,1.728,3861.9,3861.3,2.58979219]
[1761036441828,1.728,3861.9,3861.4,2.58972972]
[1761036442228,1.728,3861.9,3861.5,2.58966256]
[1761036442635,1.728,3861.9,3861.1,0.434]
[1761036442636,1.728,3861.9,3861.3,2.58978823]
[1761036443040,1.728,3861.9,3861.2,2.58986843]
[1761036443474,1.728,3861.9,3861.5,2.5896644]
[1761036443670,1.728,3861.9,3861.6,2.58959589]
[1761036443878,16.74087903,3862.3,3861.6,2.5895562]
[1761036444052,1.728,3861.9,3861.5,2.58961992]
[1761036444375,2.58907859,3862.4,3861.1,0.1223]
[1761036444376,1.729,3862.5,3861.2,0.3117]
[1761036444571,1.729,3862.5,3861.6,2.58955446]
[1761036444572,4.31714,3862.3,3861.6,2.58955446]
[1761036444775,1.728,3862.1,3861.6,2.58955446]
[1761036445077,2.172,3862.3,3861.6,2.58955446]
[1761036445244,0.54713378,3862.2,3861.6,2.58955446]
[1761036445446,0.54713378,3862.2,3861.7,2.58951165]
[1761036445648,0.54713378,3862.2,3861.3,2.90150033]
[1761036445649,1.728,3862.1,3861.3,2.90150033]
[1761036445847,0.02579062,3862.2,3861.3,2.90150033]
[1761036446047,0.57291857,3862.2,3861.6,2.58959687]
[1761036446882,5.064,3862.1,3861.6,2.58959687]
[1761036447580,0.001,3862.5,3861.4,0.50688]
[1761036447877,7.65207793,3862.4,3861.7,2.58948345]
[1761036448059,0.54777641,3862.3,3861.7,2.58948345]
[1761036448259,1.728,3862.2,3861.7,2.58948345]
[1761036448459,0.54777641,3862.1,3861.7,2.58948345]
[1761036450199,0.001,3862.2,3861.8,0.3117]
[1761036450403,0.54949626,3862.2,3861.7,2.58950922]
[1761036450903,1.728,3862.1,3861.2,0.50688]
[1761036451106,1.728,3862.1,3861.3,2.58979274]
[1761036451107,1.728,3861.9,3861.3,2.58979274]
[1761036451470,1.728,3861.9,3861.2,2.58981087]
[1761036451692,2.19349062,3862.1,3861.8,0.1288]
[1761036451864,0.54860105,3862.0,3861.8,0.1288]
[1761036452499,0.57439167,3862.0,3861.8,0.1288]
[1761036453294,0.001,3862.2,3861.8,0.1288]
[1761036453496,0.001,3862.2,3861.9,0.1288]
[1761036453696,0.001,3862.2,3862.1,0.1288]
[1761036454273,0.54981628,3862.2,3862.1,0.1288]
[1761036454468,0.001,3862.2,3862.1,0.1288]
[1761036456865,0.001,3862.2,3862.1,2.7180649]
[1761036457680,0.001,3862.2,3862.1,0.1288]
[1761036459714,0.001,3862.2,3862.1,3.9288]
[1761036460213,0.54981481,3862.2,3862.1,3.9288]
[1761036460412,0.98951481,3862.2,3862.1,3.9288]
[1761036463291,1.01530543,3862.2,3862.1,3.9288]
[1761036463507,3.57871267,3862.2,3862.1,3.8]
[1761036464392,3.13901267,3862.2,3862.1,3.8]
[1761036464586,0.54981481,3862.2,3862.1,0.1288]
[1761036464901,0.001,3862.2,3862.1,3.0297649]
[1761036465218,0.001,3862.2,3862.1,0.1288]
[1761036465700,0.001,3862.2,3862.1,2.7180649]
[1761036466131,0.001,3862.2,3862.1,3.89381068]
[1761036466530,0.001,3862.2,3862.1,7.69381068]
[1761036467809,0.001,3862.2,3862.1,11.02681068]
[1761036469021,0.001,3862.2,3862.1,11.53369068]
[1761036473538,0.001,3862.2,3862.1,7.88899068]
[1761036473762,0.001,3862.2,3862.1,11.22099068]
[1761036474246,0.001,3862.2,3862.1,11.53269068]
[1761036475310,0.001,3862.2,3862.1,7.69381068]
[1761036475609,0.001,3862.2,3862.1,11.02581068]
[1761036476539,0.001,3862.2,3862.1,10.71411068]
[1761036477731,0.001,3862.2,3862.1,7.2608]
[1761036477911,0.4407,3862.2,3862.1,7.2608]
[1761036478107,0.4407,3862.2,3862.1,0.1288]
[1761036478346,4.75789786,3862.2,3862.1,0.1288]
[1761036478521,5.30676831,3862.2,3862.1,0.1288]
[1761036478917,1.728,3862.1,3861.3,3.8]
[1761036479116,0.4397,3862.1,3861.7,0.1288]
[1761036479644,2.1677,3862.1,3861.7,0.1288]
[1761036479807,0.2254,3861.8,3861.7,0.1288]
[1761036480557,0.4397,3862.0,3861.7,0.1288]
[1761036480748,0.4397,3862.0,3861.7,2.71831518]
[1761036480923,0.001,3862.2,3861.8,2.58941811]
[1761036481227,1.01132815,3862.2,3862.0,0.1288]
[1761036481436,0.4621,3862.2,3862.0,0.1288]
[1761036481628,0.001,3862.2,3862.0,0.1288]
[1761036481834,0.001,3862.2,3862.0,2.71812838]
[1761036482161,0.001,3862.2,3862.1,2.61515754]
[1761036482320,0.001,3862.2,3862.1,2.7180649]
[1761036482854,0.001,3862.2,3862.1,0.1288]
[1761036483053,0.4621,3862.2,3862.1,0.1288]
[1761036484160,0.001,3862.2,3862.1,0.1288]
[1761036484461,0.001,3862.2,3862.1,7.91469552]
[1761036484650,0.001,3862.2,3862.1,8.20050288]
[1761036485026,0.001,3862.2,3862.1,7.88880288]
[1761036485642,0.001,3862.2,3862.1,8.20050288]
[1761036490675,0.001,3862.2,3862.1,7.88880288]
[1761036490867,0.001,3862.2,3862.1,8.20050288]
[1761036492174,0.001,3862.2,3862.1,11.20050288]
[1761036492373,0.001,3862.5,3862.4,4.82394379]
[1761036492594,0.001,3862.5,3862.4,9.96451484]
[1761036492888,0.001,3862.5,3862.4,14.07521484]
[1761036493560,0.001,3862.5,3862.4,10.27621484]
[1761036493951,1e-08,3862.9,3862.8,4.82367569]
[1761036494153,1e-08,3862.9,3862.8,14.67972096]
[1761036494372,1e-08,3862.9,3862.8,17.01093933]
[1761036494766,1e-08,3862.9,3862.8,10.48489406]
[1761036495072,1e-08,3862.9,3862.8,10.61369406]
[1761036495243,1e-08,3862.9,3862.8,10.48489406]
[1761036495645,1e-08,3862.9,3862.8,10.61369406]
[1761036499047,1e-08,3862.9,3862.8,10.30199406]
[1761036499482,1e-08,3862.9,3862.8,10.61269406]
[1761036500662,1e-08,3862.9,3862.8,4.73711406]
[1761036500979,0.65910001,3862.9,3862.8,3.328]
[1761036501153,0.21430001,3862.9,3862.8,5.91679569]
[1761036501381,1e-08,3862.9,3862.8,5.91679569]
[1761036501973,0.44480001,3862.9,3862.8,3.328]
[1761036502281,1e-08,3862.9,3862.8,6.42367569]
[1761036502578,1e-08,3862.9,3862.8,5.91679569]
[1761036503212,1e-08,3862.9,3862.8,7.2742482]
[1761036505377,1e-08,3862.9,3862.8,9.3139482]
[1761036507702,0.001,3863.6,3863.5,6.89220663]
[1761036507908,0.001,3863.6,3863.5,10.22020663]
[1761036508216,0.001,3863.6,3863.5,12.08325086]
[1761036508708,0.001,3863.6,3863.5,18.46325086]
[1761036508879,1e-08,3864.0,3863.9,3.09493869]
[1761036509079,1e-08,3864.0,3863.9,12.80193869]
[1761036509392,1e-08,3864.0,3863.9,14.63094254]
[1761036510808,1e-08,3864.0,3863.9,14.75974254]
[1761036513028,0.001,3864.2,3863.9,14.75974254]
[1761036513029,0.001,3864.2,3864.1,3.09480474]
[1761036513326,0.001,3864.2,3864.1,3.22360474]
[1761036515023,0.001,3864.2,3864.1,3.29670474]
[1761036515324,0.001,3864.2,3864.1,5.41848147]
[1761036515715,0.001,3864.2,3864.1,5.73018147]
[1761036517426,0.001,3864.2,3864.1,5.41848147]
[1761036518007,0.001,3864.2,3864.1,5.73018147]
[1761036518743,0.001,3864.2,3864.1,5.34538147]
[1761036518936,0.4687,3864.5,3864.4,3.09460383]
[1761036519140,0.4687,3864.5,3864.4,6.42060383]
[1761036519334,0.4687,3864.5,3864.4,8.31369461]
[1761036519536,0.4687,3864.5,3864.4,12.10969459]
[1761036519759,0.001,3864.6,3864.5,3.09453687]
[1761036522043,0.4697,3864.6,3864.5,3.09453687]
[1761036522616,0.4697,3864.6,3864.5,4.82253687]
[1761036522856,0.4697,3864.6,3864.5,6.72385227]
[1761036523444,0.4697,3864.6,3864.5,10.51985225]
[1761036523649,0.001,3864.6,3864.5,8.79185225]
[1761036524039,0.4697,3864.6,3864.5,8.79185225]
[1761036524236,0.001,3864.6,3864.5,8.79185225]
[1761036524761,0.001,3864.6,3864.5,9.10355225]
[1761036525050,0.001,3864.6,3864.5,8.79185225]
[1761036525346,0.7042,3864.6,3864.5,8.79185225]
[1761036526247,0.2355,3864.6,3864.5,8.79185225]
[1761036526461,0.001,3864.6,3864.5,8.79185225]
[1761036526947,0.001,3865.0,3864.9,2.58738906]
[1761036527249,0.001,3865.0,3864.9,9.70738904]
[1761036527948,0.4697,3865.0,3864.9,9.70738904]
[1761036528828,0.4697,3865.0,3864.9,10.21426904]
[1761036529081,0.001,3865.0,3864.9,10.21426904]
[1761036531658,0.4697,3865.0,3864.9,10.21426904]
[1761036532365,0.001,3865.0,3864.9,11.49444154]
[1761036536877,0.001,3865.0,3864.9,11.62324154]
[1761036537752,0.8125,3865.4,3865.2,3.09406824]
[1761036537991,0.8125,3865.4,3865.3,3.82988]
[1761036538168,0.8125,3865.4,3865.3,6.54580131]
[1761036538481,0.8125,3865.4,3865.3,7.83850026]
[1761036538691,0.8125,3865.4,3865.3,11.63250024]
[1761036539056,1.2812,3865.4,3865.3,11.63250024]
[1761036539781,0.8125,3865.4,3865.3,11.63250024]
[1761036540757,0.8135,3865.4,3865.3,11.63250024]
[1761036541774,1.2559,3865.4,3865.3,3.92279998]
[1761036541973,1.2559,3865.4,3865.3,9.83292129]
[1761036542289,1.2559,3865.4,3865.3,10.33980129]
[1761036546698,1.2559,3865.4,3865.3,7.24579998]
[1761036546888,1.2559,3865.4,3865.3,3.92279998]
[1761036548592,1.2559,3865.4,3865.3,6.50992129]
[1761036548792,0.8135,3865.4,3865.3,6.50992129]
[1761036549804,0.8135,3865.4,3865.3,8.27825829]
[1761036550201,1.2559,3865.4,3865.3,7.01680129]
[1761036551508,0.8135,3865.4,3865.3,7.01680129]
[1761036562315,0.8135,3865.4,3865.3,7.32850129]
[1761036562517,0.8135,3865.4,3865.3,3.53450131]
[1761036563044,0.8135,3865.4,3865.3,5.26250131]
[1761036563244,0.8135,3865.4,3865.3,6.95931704]
[1761036565554,0.001,3865.8,3865.7,4.8217336]
[1761036565713,0.001,3865.8,3865.7,14.27375785]
[1761036565907,0.001,3865.8,3865.7,14.37668932]
[1761036566147,0.001,3865.8,3865.7,16.33175698]
[1761036567321,0.001,3865.8,3865.7,10.53730126]
[1761036570848,0.001,3865.8,3865.7,10.22560126]
[1761036571371,0.001,3865.8,3865.7,6.90560126]
[1761036571542,0.001,3865.8,3865.7,10.22460126]
[1761036572546,0.4302,3865.8,3865.7,2.7156536]
[1761036572767,0.4302,3865.8,3865.7,2.5868536]
[1761036572977,0.4302,3865.8,3865.7,5.9048536]
[1761036576857,0.4302,3865.8,3865.7,3.318]
[1761036577044,0.4302,3865.8,3865.7,7.11199998]
[1761036577242,0.4302,3865.8,3865.7,10.20573358]
[1761036579189,0.001,3865.8,3865.7,10.20573358]
[1761036582658,0.001,3865.8,3865.7,10.33453358]
[1761036584005,0.4302,3865.8,3865.7,10.33453358]
[1761036585369,0.4302,3865.8,3865.7,11.62668229]
[1761036587298,0.001,3865.8,3865.7,11.62668229]
[1761036592110,0.001,3865.8,3865.7,11.93838229]
[1761036595915,0.001,3865.8,3865.7,8.14438231]
[1761036598542,0.001,3866.2,3866.1,3.09346596]
[1761036598717,0.001,3866.2,3866.1,7.00335154]
[1761036598918,0.001,3866.2,3866.1,7.41798569]
[1761036599642,0.001,3866.2,3866.1,9.14598569]
[1761036601738,0.001,3866.2,3866.1,8.83428569]
[1761036602240,0.4628,3866.2,3866.1,8.83428569]
[1761036602440,0.001,3866.2,3866.1,7.75938596]
[1761036602659,0.001,3866.2,3866.1,8.26626596]
[1761036602860,0.4628,3866.2,3866.1,7.75938596]
[1761036603229,0.4628,3866.2,3866.1,8.26626596]
[1761036604637,0.001,3866.2,3866.1,6.53826596]
[1761036605125,0.001,3866.2,3866.1,11.50343211]
[1761036605755,0.001,3866.2,3866.1,11.81513211]
[1761036606832,0.001,3866.2,3866.1,13.54313211]
[1761036607033,0.001,3866.6,3866.5,4.82119837]
[1761036607239,0.001,3866.6,3866.5,14.51519837]
[1761036607566,0.001,3866.6,3866.5,16.63583342]
[1761036610847,0.001,3866.6,3866.5,14.90783342]
[1761036611047,0.8125,3867.1,3867.0,6.07136394]
[1761036611249,0.8125,3867.1,3867.0,9.38536394]
[1761036611547,1.2743,3867.1,3867.0,9.38536394]
[1761036611747,1.2743,3867.1,3867.0,10.84112388]
[1761036612478,0.8125,3867.1,3867.0,10.84112388]
[1761036613955,0.8125,3867.1,3867.0,11.10062388]
[1761036614162,0.8125,3867.1,3867.0,10.84112388]
[1761036616106,0.001,3867.2,3867.1,3.09279709]
[1761036616274,0.001,3867.2,3867.1,4.31906865]
[1761036616482,0.001,3867.2,3867.1,4.17690948]
[1761036616982,0.001,3867.2,3867.1,4.30570948]
[1761036621184,0.001,3867.2,3867.1,7.28420946]
[1761036621896,0.001,3867.2,3866.6,0.1163]
[1761036621897,0.4457,3867.2,3866.1,0.002]
[1761036622142,0.2262,3866.2,3866.1,0.002]
[1761036622348,0.2262,3866.2,3866.1,5.9005233]
[1761036622503,0.6709,3866.2,3866.1,6.4074033]
[1761036622843,0.6709,3866.2,3866.1,6.9653523]
[1761036623130,0.6709,3866.2,3866.1,5.90058596]
[1761036626934,0.6709,3866.2,3866.1,0.002]
[1761036628200,0.69669062,3866.2,3866.1,0.002]
[1761036629903,0.6709,3866.2,3866.1,0.002]
[1761036630099,0.69669062,3866.2,3866.1,0.002]
[1761036631807,0.69669062,3866.2,3866.1,0.1308]
[1761036633323,1.47445385,3866.2,3866.1,0.1308]
[1761036633528,4.06097291,3866.2,3866.1,0.1308]
[1761036633731,5.78897291,3866.2,3866.1,0.1308]
[1761036633931,5.76318229,3866.2,3866.1,0.1308]
[1761036635145,5.76318229,3866.2,3866.1,0.002]
[1761036635146,14.83913248,3866.2,3866.1,0.002]
[1761036635351,14.29108029,3866.2,3866.1,0.002]
[1761036635847,8.87222729,3866.2,3866.1,0.002]
[1761036636051,9.27319229,3866.2,3866.1,0.002]
[1761036636549,5.89198229,3866.2,3866.1,0.002]
[1761036636749,7.91693229,3866.2,3866.1,0.002]
[1761036636947,11.68343645,3866.2,3866.1,0.002]
[1761036639650,5.89198229,3866.2,3866.1,0.002]
[1761036640352,1.57746323,3866.2,3866.1,0.002]
[1761036640528,0.6709,3866.2,3866.1,0.1308]
[1761036641652,6.46235416,3866.2,3866.1,0.1308]
[1761036642932,0.2262,3866.2,3866.1,0.1308]
[1761036643131,0.6732,3866.2,3866.1,0.1308]
[1761036644153,0.69899062,3866.2,3866.1,0.1308]
[1761036644553,0.25199062,3866.2,3866.1,0.1308]
[1761036644764,0.77777734,3866.4,3866.1,0.002]
[1761036645068,4.31459203,3866.1,3865.7,0.002]
[1761036645265,6.00945416,3865.8,3865.7,0.002]
[1761036645735,6.45645416,3865.8,3865.7,0.002]
[1761036646269,0.10372085,3866.0,3865.7,0.002]
[1761036646437,0.218,3865.9,3865.7,2.58884195]
[1761036646770,0.665,3865.9,3865.8,2.58678669]
[1761036646981,0.665,3865.9,3865.7,2.58884746]
[1761036647156,0.218,3865.9,3865.8,2.58678669]
[1761036647776,0.665,3865.9,3865.8,2.58678669]
[1761036648274,0.02579062,3866.1,3865.9,2.58671392]
[1761036648465,0.47279062,3866.1,3865.9,2.58671392]
[1761036648870,0.47279062,3866.1,3866.0,2.58665287]
[1761036649677,0.47279062,3866.1,3865.9,2.58668908]
[1761036649877,0.47279062,3866.1,3866.0,2.58665287]
[1761036652885,0.47279062,3866.1,3865.9,2.58670665]
[1761036653365,0.218,3865.8,3865.7,2.58883327]
[1761036653879,0.665,3865.8,3865.7,2.58883327]
[1761036654372,0.02579062,3865.9,3865.8,2.58678669]
[1761036654577,0.447,3866.1,3866.0,2.58665287]
[1761036654884,5.79145416,3866.3,3866.0,2.58665287]
[1761036654885,0.02579062,3866.2,3866.0,5.58665287]
[1761036655189,0.47279062,3866.2,3866.0,5.71545287]
[1761036655855,4.08878137,3866.4,3866.0,3.1288]
[1761036656056,4.53578137,3866.4,3866.2,2.58646714]
[1761036656672,1.22478137,3866.4,3866.3,2.58645216]
[1761036656874,0.447,3866.4,3866.3,2.71525216]
[1761036657076,0.47279062,3866.4,3866.3,0.1288]
[1761036657280,1.02346448,3866.4,3866.3,0.1288]
[1761036657482,0.47279062,3866.4,3866.3,0.1288]
[1761036658886,1.02347149,3866.4,3866.3,0.1288]